fUST/lending_fUST_20250225
["ID","MTS","AMOUNT","RATE_DAILY","PERIOD"]
[354439515,1740496245845,-230.256273,0.0004384,120]
[354439516,1740496245855,-230.256273,0.0004384,120]
[354439517,1740496245865,-5000.0,0.0004384,120]
[354439518,1740496245875,-5000.0,0.0004384,120]
[354439519,1740496245885,-151.0,0.0004384,5]
[354439520,1740496245895,-774.17776275,0.0004384,120]
[354439578,1740496246864,-869.7,0.0004384,120]
[354439580,1740496246877,-1712.72169125,0.0004384,120]
[354439582,1740496246888,-12.28093111,0.0004384,120]
[354439587,1740496246925,-3344.31852289,0.0004384,120]
[354439589,1740496246934,-151.0,0.0004384,120]
[354439591,1740496246945,-151.0,0.0004384,120]
[354439593,1740496246955,-151.0,0.0004384,120]
[354439595,1740496246965,-377.311236,0.0004384,120]
[354439598,1740496246975,-377.311236,0.0004384,120]
[354439600,1740496246984,-2768.435971,0.0004384,3]
[354439602,1740496246994,-2768.435971,0.0004384,3]
[354439604,1740496247003,-790.393945,0.0004384,120]
[354439606,1740496247012,-790.393945,0.0004384,120]
[354439608,1740496247022,-151.0,0.0004384,120]
[354439609,1740496247033,-151.0,0.0004384,120]
[354439611,1740496247046,-569.362487,0.0004384,120]
[354439613,1740496247055,-569.362487,0.0004384,120]
[354439615,1740496247065,-500.0,0.00043843,2]
[354439617,1740496247075,-500.0,0.00043873,10]
[354439619,1740496247084,-10059.0437097,0.000439,120]
[354439621,1740496247094,-3573.47144406,0.000439,120]
[354439624,1740496247103,-13395.45909489,0.000439,120]
[354439626,1740496247113,-2343.0401554,0.000439,30]
[354439628,1740496247123,-160.0,0.00043933,2]
[354439630,1740496247133,-500.0,0.00043943,2]
[354439632,1740496247142,-238.0,0.00043979,120]
[354439634,1740496247152,-3000.0,0.0004398,120]
[354439636,1740496247161,-3000.0,0.0004398,120]
[354439638,1740496247170,-218.652354,0.0004398,120]
[354439640,1740496247180,-218.652354,0.0004398,120]
[354439642,1740496247189,-151.0,0.0004398,120]
[354439644,1740496247199,-238.0,0.00043989,120]
[354439645,1740496247208,-5000.0,0.00043998,120]
[354439647,1740496247218,-160.70196287,0.00043999,30]
[354439648,1740496247226,-6580.93728112,0.00044,30]
[354439649,1740496247238,-8696.05479304,0.00044,30]
[354439650,1740496247250,-819.01676245,0.00044,30]
[354439652,1740496247262,-14315.10270999,0.00044,30]
[354439653,1740496247509,-271.33623866,0.00035,120]
[354439657,1740496445487,-301.12958736,0.00029638,120]
[354439658,1740496445510,-150.5,0.0003497,120]
[354439659,1740496445532,-150.5,0.0003498,120]
[354439660,1740496445552,-273.82,0.0003498,120]
[354439661,1740496445573,-150.5,0.0003499,120]
[354439662,1740496445594,-150.5,0.0003499,120]
[354439663,1740496445619,-23356.81348781,0.00035,120]
[354439664,1740496445659,-1963.31483396,0.00017607,109]
[354439665,1740496445681,-1810.15766955,0.00017785,109]
[354439666,1740496533347,150.5,0.0003339,120]
[354439667,1740496533822,150.5,0.0003338,120]
[354439668,1740496534341,150.5,0.0003337,120]
[354439669,1740496601105,273.82,0.0003337,120]
[354439671,1740496697758,301.12958736,0.00029638,120]
[354439673,1740496926614,1013.77,0.00012,30]
[354439806,1740497325708,10763.21405838,0.000135,2]
[354439861,1740497432063,-1186.97916204,0.00015,2]
[354439862,1740497432074,-1662.1852466,0.00015441,2]
[354439863,1740497432085,-300.0,0.00015596,2]
[354439864,1740497432095,-5828.23884835,0.00015597,2]
[354439865,1740497432130,-2881.68944685,0.00015597,2]
[354439866,1740497432143,-466.30295214,0.00015746,2]
[354439867,1740497432154,-1772.34514989,0.00016,2]
[354439868,1740497432174,-327.65485011,0.00016,2]
[354439869,1740497432185,-250.0,0.00016072,2]
[354439870,1740497432197,-3172.0,0.000161,2]
[354439871,1740497432209,-3167.0,0.000161,2]
[354439872,1740497432220,-3167.0,0.000161,2]
[354439873,1740497432231,-1451.14028245,0.000161,2]
[354439874,1740497432342,-1715.85971755,0.000161,2]
[354439875,1740497432353,-3167.0,0.000161,2]
[354439876,1740497432365,-3167.0,0.000161,2]
[354439877,1740497432377,-17700.12011706,0.00016273,2]
[354439878,1740497432390,-3179.6546634,0.00016273,2]
[354439886,1740497437884,-586.48494287,0.00016273,2]
[354439887,1740497437981,-1733.32,0.00016273,2]
[354439888,1740497437994,-1350.47471554,0.00016273,2]
[354439889,1740497438007,-3279.13629397,0.00016273,2]
[354439890,1740497438018,-206.7913398,0.00016337,2]
[354439891,1740497438029,-278.426783,0.00016361,2]
[354439892,1740497438041,-471.8858482,0.00016373,2]
[354439893,1740497438052,-420.0,0.00017059,2]
[354439894,1740497438069,-898.91738886,0.00017255,2]
[354439895,1740497438080,-5315.64070054,0.00017309,2]
[354439896,1740497438091,-931.04963246,0.00017369,2]
[354439897,1740497438106,-18672.82728233,0.00017369,2]
[354439898,1740497438117,-18680.6101373,0.00017435,2]
[354439899,1740497438128,-369.07874227,0.00017435,2]
[354439900,1740497438139,-774.97801901,0.00017444,2]
[354439901,1740497438151,-24900.0,0.00017445,2]
[354439902,1740497438162,-300.0,0.000175,2]
[354439903,1740497438173,-8956.3899021,0.00017585,2]
[354439905,1740497438184,-18680.6101373,0.00017945,2]
[354439906,1740497438194,-369.07874227,0.00017945,2]
[354439908,1740497438205,-152.60800816,0.00017953,2]
[354439909,1740497438215,-259.65892783,0.00017953,2]
[354439911,1740497438226,-93403.0506865,0.00017954,2]
[354439912,1740497438237,-1845.39371135,0.00017954,2]
[354439914,1740497438247,-92769.19640429,0.00017964,5]
[354439915,1740497438258,-136720.7322521,0.00017964,15]
[354439916,1740497438268,-500.0,0.00017973,2]
[354439917,1740497438279,-500.0,0.00017973,2]
[354439918,1740497438290,-500.0,0.00017973,2]
[354439919,1740497438300,-501.13223201,0.00017973,2]
[354439920,1740497438316,-500.0,0.00017973,2]
[354439921,1740497438327,-614.81024551,0.00017973,2]
[354439922,1740497438338,-500.0,0.00017973,2]
[354439923,1740497438348,-543.89531724,0.00017973,2]
[354439924,1740497438359,-500.0,0.00017973,2]
[354439925,1740497438368,-507.30543623,0.00017973,2]
[354439926,1740497438378,-500.0,0.00017973,2]
[354439927,1740497438388,-500.0,0.00017973,2]
[354439928,1740497438399,-500.0,0.00017973,2]
[354439929,1740497438408,-500.0,0.00017973,2]
[354439930,1740497438418,-500.0,0.00017973,2]
[354439931,1740497438428,-500.0,0.00017973,2]
[354439932,1740497438438,-152.17732807,0.00017973,2]
[354439933,1740497438448,-500.0,0.00017973,2]
[354439934,1740497438459,-500.0,0.00017973,2]
[354439935,1740497438469,-500.0,0.00017973,2]
[354439936,1740497438479,-151.02004961,0.00017973,2]
[354439937,1740497438488,-500.0,0.00017973,2]
[354439938,1740497438499,-500.0,0.00017973,2]
[354439939,1740497438509,-500.0,0.00017999,2]
[354439940,1740497438519,-500.0,0.00017999,2]
[354439941,1740497438531,-168.16894119,0.00017999,2]
[354439942,1740497438542,-500.0,0.00017999,2]
[354439943,1740497438553,-465.72406683,0.00017999,2]
[354439944,1740497438579,-14000.08968197,0.00018,4]
[354439945,1740497438598,-2295296.90211097,0.00018,15]
[354439946,1740497438610,-160.049611,0.00018,15]
[354439947,1740497438621,-160.049611,0.00018,15]
[354439948,1740497438632,-160.049611,0.00018,15]
[354439949,1740497438643,-477.34662398,0.0001801,2]
[354439950,1740497438655,-18680.6101373,0.000181,2]
[354439951,1740497438665,-369.07874227,0.000181,2]
[354439952,1740497438675,-732.28397462,0.0001812,2]
[354439953,1740497438685,-2000.0,0.0001812,2]
[354439954,1740497438699,-2000.0,0.0001812,2]
[354439955,1740497438712,-2000.0,0.0001812,2]
[354439956,1740497438722,-2000.0,0.0001812,2]
[354439957,1740497438734,-2000.0,0.0001812,2]
[354439958,1740497438745,-2000.0,0.0001812,2]
[354439959,1740497438759,-2000.0,0.0001812,2]
[354439960,1740497438770,-2000.0,0.0001812,2]
[354439961,1740497438783,-2000.0,0.0001812,2]
[354439962,1740497438794,-2000.0,0.0001812,2]
[354439963,1740497438804,-2000.0,0.0001812,2]
[354439964,1740497438820,-2000.0,0.0001812,2]
[354439965,1740497438831,-2000.0,0.0001812,2]
[354439966,1740497438841,-3968.29531966,0.0001812,2]
[354439967,1740497438852,-669.72470963,0.0001812,2]
[354439968,1740497438861,-503.36246671,0.00018247,2]
[354439969,1740497438872,-175.41,0.000186,2]
[354439970,1740497438881,-587.0,0.00018658,2]
[354439971,1740497438891,-163.46256054,0.00018672,2]
[354439972,1740497438901,-439.64045743,0.00018672,2]
[354439973,1740497438911,-500.0,0.00018672,2]
[354439974,1740497438920,-500.0,0.00018672,2]
[354439975,1740497438930,-592.75987409,0.00018681,2]
[354439976,1740497438940,-501.41863203,0.00018835,2]
[354439977,1740497438949,-18680.6101373,0.00018855,2]
[354439978,1740497438959,-369.07874227,0.00018855,2]
[354439979,1740497438969,-500.75840755,0.00018865,2]
[354439980,1740497438978,-510.30142762,0.00018875,2]
[354439981,1740497438988,-500.0,0.00018875,2]
[354439982,1740497438997,-500.0,0.00018875,2]
[354439983,1740497439008,-300.10179536,0.0001896,2]
[354439984,1740497439017,-500.0,0.0001896,2]
[354439985,1740497439027,-500.0,0.0001896,2]
[354439986,1740497439037,-151.0,0.00019166,2]
[354439987,1740497439047,-56041.8304119,0.00019168,2]
[354439988,1740497439060,-1107.23622681,0.00019168,2]
[354439989,1740497439070,-620.78814876,0.00019178,2]
[354439990,1740497439080,-620.78814876,0.00019178,2]
[354439991,1740497439089,-620.78814876,0.00019178,2]
[354439992,1740497439099,-620.78814876,0.00019178,2]
[354439993,1740497439109,-620.78814876,0.00019178,2]
[354439994,1740497439119,-620.78814876,0.00019178,2]
[354439995,1740497439129,-620.78814876,0.00019178,2]
[354439996,1740497439139,-620.78814876,0.00019178,2]
[354439997,1740497439148,-620.78814876,0.00019178,2]
[354439998,1740497439158,-620.78814876,0.00019178,2]
[354439999,1740497439168,-620.78814876,0.00019178,2]
[354440000,1740497439178,-620.78814876,0.00019178,2]
[354440001,1740497439188,-620.78814876,0.00019178,2]
[354440002,1740497439197,-620.78814876,0.00019178,2]
[354440003,1740497439207,-620.78814876,0.00019178,2]
[354440004,1740497439216,-620.78814876,0.00019178,2]
[354440005,1740497439227,-620.78814876,0.00019178,2]
[354440006,1740497439237,-620.78814876,0.00019178,2]
[354440007,1740497439246,-620.78814876,0.00019178,2]
[354440008,1740497439256,-620.78814876,0.00019178,2]
[354440009,1740497439266,-620.78814876,0.00019178,2]
[354440010,1740497439276,-620.78814876,0.00019178,2]
[354440011,1740497439286,-620.78814876,0.00019178,2]
[354440012,1740497439296,-620.78814876,0.00019178,2]
[354440013,1740497439306,-620.78814876,0.00019178,2]
[354440014,1740497439318,-620.78814876,0.00019178,2]
[354440015,1740497439328,-620.78814876,0.00019178,2]
[354440016,1740497439339,-620.78814876,0.00019178,2]
[354440017,1740497439348,-620.78814876,0.00019178,2]
[354440018,1740497439358,-620.78814876,0.00019178,2]
[354440019,1740497439368,-620.78814876,0.00019178,2]
[354440020,1740497439378,-620.78814876,0.00019178,2]
[354440021,1740497439388,-620.78814876,0.00019178,2]
[354440022,1740497439398,-620.78814876,0.00019178,2]
[354440023,1740497439408,-620.78814876,0.00019178,2]
[354440024,1740497439418,-620.78814876,0.00019178,2]
[354440025,1740497439427,-620.78814876,0.00019178,2]
[354440028,1740497439652,-338.17346939,0.00019198,2]
[354440029,1740497439664,-166.1,0.00019714,2]
[354440031,1740497439675,-55640.80040002,0.00019888,7]
[354440032,1740497439685,-2671.47325578,0.00019888,7]
[354440033,1740497439699,-160.0,0.0002,2]
[354440034,1740497439709,-182.71,0.00020262,2]
[354440035,1740497439719,-823.0,0.00020408,2]
[354440036,1740497439731,-200.981,0.0002081,2]
[354440037,1740497439741,-268.8967974,0.00021358,2]
[354440038,1740497439751,-477.34662397,0.0002173,2]
[354440039,1740497439761,-1152.0,0.00022322,2]
[354440040,1740497439773,-27829.1907328,0.0002318,21]
[354440041,1740497439783,-1613.0,0.00024416,2]
[354440042,1740497439792,-278.426783,0.00024541,2]
[354440043,1740497439802,-5311.0,0.00025,7]
[354440044,1740497439816,-322.67128797,0.00025,2]
[354440045,1740497439826,-18680.6101373,0.00025217,2]
[354440046,1740497439836,-369.07874227,0.00025217,2]
[354440047,1740497439845,-500.0,0.00025238,2]
[354440048,1740497439856,-477.34662397,0.0002545,2]
[354440049,1740497439867,-69752.06840391,0.00026,30]
[354440050,1740497439877,-2671.47325578,0.00026,30]
[354440051,1740497439887,-508.5537272,0.0002652,2]
[354440052,1740497439897,-156.3,0.000266,31]
[354440053,1740497439907,-2258.0,0.00026705,2]
[354440054,1740497439918,-151.0,0.000269,19]
[354440055,1740497439928,-401.90163984,0.00027397,60]
[354440056,1740497439938,-151.0,0.000284,20]
[354440057,1740497439948,-151.0,0.000284,16]
[354440058,1740497439958,-1500.0,0.00029,2]
[354440059,1740497439968,-1500.0,0.00029,2]
[354440060,1740497439978,-1500.0,0.00029,2]
[354440061,1740497439987,-1500.0,0.00029,2]
[354440062,1740497439997,-1500.0,0.00029,2]
[354440063,1740497440007,-1500.0,0.00029,2]
[354440064,1740497440017,-1500.0,0.00029,2]
[354440065,1740497440027,-1500.0,0.00029,2]
[354440066,1740497440037,-1500.0,0.00029,2]
[354440067,1740497440046,-1500.0,0.00029,2]
[354440068,1740497440056,-1668.66,0.00029,2]
[354440069,1740497440071,-31251.55439203,0.00029,2]
[354440070,1740497440082,-500.0,0.0002914,2]
[354440071,1740497440093,-477.34662397,0.0002917,2]
[354440072,1740497440103,-2422.0,0.0002921,2]
[354440073,1740497440112,-285.66,0.00029303,120]
[354440074,1740497440122,-150.5,0.00029303,120]
[354440075,1740497440132,-150.5,0.00029313,120]
[354440076,1740497440142,-150.5,0.00029313,120]
[354440077,1740497440153,-150.5,0.00029323,120]
[354440078,1740497440164,-150.5,0.00029323,120]
[354440079,1740497440174,-18680.6101373,0.0002948,3]
[354440080,1740497440184,-369.07874227,0.0002948,3]
[354440081,1740497440195,-2671.47325578,0.0002948,3]
[354440082,1740497440205,-18680.6101373,0.0002949,3]
[354440083,1740497440215,-369.07874227,0.0002949,3]
[354440084,1740497440225,-160.0,0.0002949,3]
[354440085,1740497440236,-2671.47325578,0.0002949,3]
[354440086,1740497440246,-48336.52693871,0.000295,2]
[354440087,1740497440257,-369.07874227,0.00029617,3]
[354440088,1740497440269,-369.07874227,0.00029618,3]
[354440089,1740497440279,-1107.23622681,0.00029628,3]
[354440090,1740497440290,-160.0,0.00029628,3]
[354440091,1740497440300,-254269.26476971,0.00029638,120]
[354440092,1740497440315,-2671.47325578,0.00029638,120]
[354440093,1740497440325,-151.0,0.000299,20]
[354440094,1740497440335,-160.0,0.0003,10]
[354440095,1740497440346,-159.28509252,0.0003,120]
[354440096,1740497440357,-293.0,0.0003,2]
[354440097,1740497440367,-200.0,0.0003,30]
[354440098,1740497440377,-27829.1907328,0.00030087,62]
[354440099,1740497440387,-500.0,0.00030152,2]
[354440101,1740497440398,-500.0,0.00030444,2]
[354440102,1740497440408,-151.0,0.00031,19]
[354440104,1740497440419,-151.0,0.000314,18]
[354440106,1740497440430,-504.45566398,0.00031671,5]
[354440107,1740497440440,-1000.0,0.00031671,5]
[354440108,1740497440450,-1000.0,0.00031671,5]
[354440109,1740497440461,-1000.0,0.00031671,5]
[354440110,1740497440471,-1000.0,0.00031671,5]
[354440111,1740497440482,-660.30020819,0.00031671,5]
[354440112,1740497440492,-1000.0,0.00031671,5]
[354440113,1740497440503,-1000.0,0.00031671,5]
[354440114,1740497440513,-1000.0,0.00031671,5]
[354440115,1740497440524,-1000.0,0.00031671,5]
[354440116,1740497440535,-500.0,0.00031671,5]
[354440117,1740497440546,-1000.0,0.00031671,5]
[354440118,1740497440557,-611.57246325,0.00031671,5]
[354440119,1740497440572,-251.92103269,0.00031671,5]
[354440120,1740497440582,-246.29105683,0.00032,120]
[354440121,1740497440592,-1000.0,0.00032371,5]
[354440122,1740497440602,-1000.0,0.00032371,2]
[354440123,1740497440613,-1000.0,0.00032574,5]
[354440124,1740497440623,-968.41951991,0.00032574,5]
[354440125,1740497440633,-504.48004047,0.00032659,5]
[354440126,1740497440644,-1000.0,0.00032659,5]
[354440127,1740497440654,-6915.34827673,0.000328,2]
[354440129,1740497440663,-500.0,0.00032876,30]
[354440130,1740497440674,-500.0,0.00032876,30]
[354440132,1740497440684,-560.31,0.00032876,30]
[354440134,1740497440700,-477.34662397,0.0003289,2]
[354440136,1740497440710,-175.89,0.00032899,2]
[354440138,1740497440719,-175.89,0.00032899,2]
[354440140,1740497440729,-160.0,0.00032899,10]
[354440141,1740497440739,-444525.07,0.000329,30]
[354440142,1740497440749,-3367.72197511,0.000329,2]
[354440143,1740497440759,-2671.47325578,0.000329,30]
[354440144,1740497440770,-500.0,0.00033,10]
[354440145,1740497440781,-500.0,0.00033,10]
[354440146,1740497440791,-2000.0,0.00033,10]
[354440147,1740497440801,-2000.0,0.00033,10]
[354440148,1740497440814,-2000.0,0.00033,10]
[354440149,1740497440825,-2000.0,0.00033,10]
[354440150,1740497440841,-2000.0,0.00033,10]
[354440151,1740497440855,-2000.0,0.00033,10]
[354440152,1740497440866,-2000.0,0.00033,10]
[354440153,1740497440876,-2000.0,0.00033,10]
[354440154,1740497440886,-2000.0,0.00033,10]
[354440155,1740497440896,-2000.0,0.00033,10]
[354440156,1740497440905,-2000.0,0.00033,10]
[354440157,1740497440915,-2000.0,0.00033,10]
[354440158,1740497440924,-2000.0,0.00033,10]
[354440159,1740497440933,-2000.0,0.00033,10]
[354440160,1740497440943,-2000.0,0.00033,10]
[354440161,1740497440953,-500.0,0.00033,10]
[354440162,1740497440963,-293.0,0.00033,2]
[354440163,1740497440972,-293.0,0.00033,2]
[354440164,1740497440982,-2671.47325578,0.00033,10]
[354440165,1740497440992,-1000.0,0.0003337,120]
[354440166,1740497441001,-326.19620691,0.0003337,120]
[354440167,1740497441011,-151.0,0.000336,16]
[354440168,1740497441020,-765.34523088,0.000337,120]
[354440169,1740497441030,-807.817,0.00033953,37]
[354440170,1740497441040,-175.19266628,0.00033953,37]
[354440171,1740497441050,-38900.02819238,0.00034,2]
[354440172,1740497441062,-1444.0234568,0.00034741,7]
[354440173,1740497441073,-314920.42900185,0.000349,120]
[354440174,1740497441083,-18441.89620399,0.0003499,30]
[354440175,1740497441094,-51013.42475371,0.00035,120]
[354440176,1740497441104,-200.0,0.00035,120]
[354440177,1740497441114,-160.0,0.00035,7]
[354440178,1740497441124,-1139.85075842,0.00035,120]
[354440179,1740497441134,-38810.70634696,0.00035,30]
[354440180,1740497441469,-1373.58860133,0.00035,30]
[354440181,1740497441483,-665.43670631,0.00035,30]
[354440182,1740497441495,-8915.1914108,0.00035,30]
[354440183,1740497441742,-553.93063485,0.00019178,2]
[354440184,1740497441755,-66.85751391,0.00019178,2]
[354440185,1740497441764,-620.78814876,0.00019178,2]
[354440186,1740497441774,-620.78814876,0.00019178,2]
[354440187,1740497441785,-620.78814876,0.00019178,2]
[354440188,1740497441794,-620.78814876,0.00019178,2]
[354440189,1740497441804,-620.78814876,0.00019178,2]
[354440190,1740497441815,-50235.0769346,0.00035,30]
[354440191,1740497441824,-6915.34827671,0.00035537,2]
[354440192,1740497442046,-180.10837,0.00035908,2]
[354440193,1740497442056,-293.0,0.00036,2]
[354440194,1740497442072,-293.0,0.00036,2]
[354440195,1740497442083,-151.0,0.000362,18]
[354440196,1740497442093,-151.0,0.000367,20]
[354440197,1740497442103,-293.21,0.0003671,120]
[354440198,1740497442113,-2733.54684798,0.00036719,30]
[354440199,1740497442123,-27829.1907328,0.00036993,102]
[354440200,1740497442133,-7632.89306678,0.00037,60]
[354440201,1740497442144,-160.0,0.00037399,10]
[354440202,1740497442154,-444525.07,0.000374,30]
[354440203,1740497442164,-151.0,0.000374,14]
[354440204,1740497442175,-4500.0,0.000374,14]
[354440205,1740497442185,-4500.0,0.000374,14]
[354440206,1740497442196,-151.0,0.000374,14]
[354440207,1740497442206,-151.0,0.000374,14]
[354440208,1740497442216,-151.0,0.000374,14]
[354440209,1740497442225,-3367.72197511,0.000379,2]
[354440210,1740497442235,-5000.0,0.00038074,7]
[354440211,1740497442244,-6915.34827671,0.00038274,2]
[354440212,1740497442254,-10000.0,0.000385,60]
[354440213,1740497442264,-151.0,0.000388,20]
[354440214,1740497442274,-1000.0,0.00038936,5]
[354440215,1740497442284,-500.0,0.00038973,5]
[354440216,1740497442293,-500.0,0.00038973,5]
[354440217,1740497442303,-500.0,0.00038973,5]
[354440218,1740497442315,-500.19760477,0.00038973,5]
[354440219,1740497442325,-500.0,0.00038973,5]
[354440220,1740497442335,-500.0,0.00038973,5]
[354440221,1740497442344,-500.0,0.00038973,5]
[354440222,1740497442354,-500.0,0.00038973,5]
[354440224,1740497442363,-500.0,0.00038973,5]
[354440225,1740497442373,-500.0,0.00038973,5]
[354440226,1740497442383,-500.0,0.00038973,5]
[354440227,1740497442393,-500.0,0.00038973,5]
[354440228,1740497442403,-500.0,0.00038973,5]
[354440229,1740497442413,-500.0,0.00038973,5]
[354440230,1740497442422,-500.0,0.00038973,5]
[354440231,1740497442432,-5237.474249,0.00039,120]
[354440232,1740497442442,-1027505.0729,0.00039,120]
[354440233,1740497442451,-293.0,0.00039,2]
[354440234,1740497442461,-151.0,0.000391,13]
[354440235,1740497442476,-201.22562,0.000393,120]
[354440236,1740497442486,-66233.62490925,0.000397,30]
[354440237,1740497442495,-160.0,0.00039999,30]
[354440238,1740497442506,-395.44034848,0.00039999,31]
[354440239,1740497442515,-212.71851744,0.00039999,31]
[354440240,1740497442525,-201.8819958,0.00039999,31]
[354440242,1740497442534,-500.0,0.00039999,31]
[354440245,1740497442544,-417.1244046,0.00039999,31]
[354440248,1740497442553,-500.0,0.00039999,31]
[354440251,1740497442564,-500.0,0.00039999,31]
[354440252,1740497442574,-500.0,0.00039999,31]
[354440253,1740497442584,-500.0,0.00039999,31]
[354440254,1740497442595,-559.06086279,0.00039999,31]
[354440256,1740497442606,-500.0,0.00039999,31]
[354440257,1740497442615,-500.0,0.00039999,31]
[354440258,1740497442625,-500.0,0.00039999,31]
[354440259,1740497442634,-420.02282261,0.00039999,31]
[354440260,1740497442643,-620.78814876,0.00039999,31]
[354440261,1740497442653,-620.78814876,0.00039999,31]
[354440262,1740497442663,-620.78814876,0.00039999,31]
[354440263,1740497442672,-620.78814876,0.00039999,31]
[354440264,1740497442682,-620.78814876,0.00039999,31]
[354440265,1740497442695,-620.78814876,0.00039999,31]
[354440266,1740497442705,-620.78814876,0.00039999,31]
[354440267,1740497442714,-620.78814876,0.00039999,31]
[354440268,1740497442723,-444525.07,0.0004,30]
[354440269,1740497442734,-172059.255153,0.0004,120]
[354440270,1740497442744,-151.0,0.0004,14]
[354440271,1740497442754,-240.539747,0.0004,14]
[354440272,1740497442768,-240.539747,0.0004,14]
[354440273,1740497442785,-155.407299,0.0004,14]
[354440274,1740497442795,-151.0,0.0004,5]
[354440275,1740497442805,-259.948416,0.0004,14]
[354440276,1740497442818,-358.382399,0.0004,14]
[354440277,1740497442828,-299.230106,0.0004,14]
[354440278,1740497442841,-358.382399,0.0004,14]
[354440279,1740497442850,-299.230106,0.0004,14]
[354440280,1740497442860,-865.310563,0.0004,14]
[354440281,1740497442870,-151.0,0.0004,14]
[354440282,1740497442879,-865.310563,0.0004,14]
[354440283,1740497442889,-151.0,0.0004,14]
[354440284,1740497442900,-184.205019,0.0004,14]
[354440285,1740497442910,-184.205019,0.0004,14]
[354440286,1740497442919,-151.0,0.0004,14]
[354440287,1740497442929,-151.0,0.0004,14]
[354440288,1740497442939,-4500.0,0.0004,14]
[354440289,1740497442948,-4500.0,0.0004,14]
[354440290,1740497442958,-151.0,0.0004,14]
[354440291,1740497442968,-226.19805172,0.0004,120]
[354440292,1740497442977,-151.0,0.0004,14]
[354440293,1740497442987,-126143.79450353,0.0004,120]
[354440294,1740497442996,-10838.99725892,0.0004,120]
[354440295,1740497443005,-1380.618799,0.0004,120]
[354440296,1740497443015,-151.0,0.0004,14]
[354440297,1740497443024,-151.0,0.0004,14]
[354440298,1740497443033,-151.0,0.0004,14]
[354440299,1740497443043,-1000.0,0.0004,7]
[354440300,1740497443053,-151.0,0.0004,14]
[354440301,1740497443065,-500.0,0.00040037,25]
[354440302,1740497443075,-500.0,0.00040137,83]
[354440304,1740497443086,-500.0,0.00040139,5]
[354440306,1740497443096,-500.0,0.00040139,5]
[354440307,1740497443105,-500.0,0.00040139,5]
[354440309,1740497443115,-500.0,0.00040637,90]
[354440311,1740497443125,-500.0,0.00040658,5]
[354440312,1740497443135,-500.0,0.00040677,5]
[354440314,1740497443144,-500.0,0.00040843,5]
[354440315,1740497443154,-500.0,0.00040843,5]
[354440317,1740497443164,-500.0,0.00040843,5]
[354440319,1740497443174,-500.0,0.00040843,5]
[354440320,1740497443184,-500.0,0.00040843,5]
[354440322,1740497443194,-500.0,0.00040843,5]
[354440323,1740497443203,-500.0,0.00040843,5]
[354440325,1740497443213,-500.0,0.00040937,89]
[354440327,1740497443223,-6915.34827671,0.00041011,2]
[354440328,1740497443233,-774.03,0.00041095,120]
[354440330,1740497443242,-774.03,0.00041095,120]
[354440331,1740497443253,-774.03,0.00041095,120]
[354440332,1740497443265,-774.03,0.00041095,120]
[354440333,1740497443274,-774.03,0.00041095,120]
[354440334,1740497443284,-774.03,0.00041095,120]
[354440335,1740497443293,-774.03,0.00041095,120]
[354440336,1740497443303,-774.03,0.00041095,120]
[354440337,1740497443316,-774.03,0.00041095,120]
[354440338,1740497443325,-774.03,0.00041095,120]
[354440339,1740497443335,-774.03,0.00041095,120]
[354440340,1740497443345,-774.03,0.00041095,120]
[354440341,1740497443355,-774.03,0.00041095,120]
[354440342,1740497443365,-774.03,0.00041095,120]